Workbook

Sheet 黔南州2023年特岗教师补充招聘计划表
A1: 附件1
A2: 黔南州2023年特岗教师补充招聘计划表
A3: 序号 | B3: 设岗县 | C3: 中央“特岗计划”教师招聘计划 | M3: 备注
C4: 小计2 | D4: 学段 | E4: 小计1 | F4: 语文 | G4: 数学 | H4: 物理 | I4: 道德与法治 | J4: 音乐 | K4: 体育 | L4: 心理健康
A5: 1 | B5: 都匀市 | C5: =E5+E6 -> 3 | D5: 初中 | E5: =SUM(F5:L5) -> 1 | G5: 1
D6: 小学 | E6: =SUM(F6:L6) -> 2 | G6: 2
A7: 2 | B7: 福泉市 | C7: =E7+E8 -> 6 | D7: 初中 | E7: =SUM(F7:L7) -> 1 | G7: 1
D8: 小学 | E8: 5 | G8: 3 | I8: 1 | L8: 1
A9: 3 | B9: 瓮安县 | C9: =E9+E10 -> 6 | D9: 初中 | E9: 3 | G9: 1 | J9: 1 | K9: 1
D10: 小学 | E10: 3 | G10: 3
A11: 4 | B11: 龙里县 | C11: =E11+E12 -> 9 | D11: 初中 | E11: 3 | G11: 2 | H11: 1
D12: 小学 | E12: 6 | G12: 5 | J12: 1
A13: 5 | B13: 三都县 | C13: =E13+E14 -> 7 | D13: 初中 | E13: 4 | F13: 4
D14: 小学 | E14: 3 | G14: 3
A15: 6 | B15: 荔波县 | C15: =E15+E16 -> 5 | D15: 初中 | E15: 3 | G15: 3
D16: 小学 | E16: 2 | G16: 2
A17: 7 | B17: 罗甸县 | C17: =E17+E18 -> 5 | D17: 初中 | E17: 5 | G17: 4 | L17: 1
D18: 小学 | E18: 0
A19: 合计 | C19: =SUM(C5:C17) -> 41 | D19: 初中 | E19: =SUM(E5,E7,E9,E11,E13,E15,E17) -> 20 | F19: =SUM(F5,F7,F9,F11,F13,F15,F17) -> 4 | G19: =SUM(G5,G7,G9,G11,G13,G15,G17) -> 12 | H19: =SUM(H5,H7,H9,H11,H13,H15,H17) -> 1 | I19: =SUM(I5,I7,I9,I11,I13,I15,I17) -> 0 | J19: =SUM(J5,J7,J9,J11,J13,J15,J17) -> 1 | K19: =SUM(K5,K7,K9,K11,K13,K15,K17) -> 1 | L19: =SUM(L5,L7,L9,L11,L13,L15,L17) -> 1
D20: 小学 | E20: =SUM(E6,E8,E10,E12,E14,E16,E18) -> 21 | F20: =SUM(F6,F8,F10,F12,F14,F16,F18) -> 0 | G20: =SUM(G6,G8,G10,G12,G14,G16,G18) -> 18 | H20: =SUM(H6,H8,H10,H12,H14,H16,H18) -> 0 | I20: =SUM(I6,I8,I10,I12,I14,I16,I18) -> 1 | J20: =SUM(J6,J8,J10,J12,J14,J16,J18) -> 1 | K20: =SUM(K6,K8,K10,K12,K14,K16,K18) -> 0 | L20: =SUM(L6,L8,L10,L12,L14,L16,L18) -> 1

Sheet 带公式表格 (hidden)
A1: 附件
A2: 贵州省2023年“特岗计划”需求申报表
A3: 县（市）教育局（盖章） | I3: 填表人： | U3: 填报时间： 年 月 日
A4: 序号 | B4: 设岗县 | C4: “特岗计划”申报总计 | D4: 中央“特岗计划”教师申报数 | W4: 地方“特岗计划”教师申报数 | X4: 中央与地方计划的 比例（不得低于8:2） | Y4: 设岗县类型 | Z4: 备注
D5: 合计 | E5: 学段 | F5: 小计 | G5: 语文 | H5: 数学 | I5: 英语 | J5: 物理 | K5: 化学 | L5: 生物 | M5: 地理 | N5: 历史 | O5: 政治 | P5: 音乐 | Q5: 体育 | R5: 美术 | S5: 信息技术 | T5: 科学 | U5: 心理健康 | V5: 其他 | W5: 幼儿园
A6: 1 | B6: 都匀市 | C6: =D6+W6 -> 50 | D6: =F6+F7 -> 37 | E6: 初中 | F6: =SUM(G6:V6) -> 12 | G6: 4 | H6: 4 | N6: 2 | O6: 2 | W6: 13 | X6: 6:2 | Y6: 0 | AA6: =D6/W6 -> 3 | AB6: =AA6*2 -> 6
E7: 小学 | F7: =SUM(G7:V7) -> 25 | G7: 4 | H7: 3 | O7: 7 | P7: 2 | Q7: 1 | R7: 1 | U7: 7
A8: 2 | B8: 福泉市 | C8: =D8+W8 -> 90 | D8: =F8+F9 -> 72 | E8: 初中 | F8: 50 | G8: 8 | H8: 8 | I8: 8 | J8: 5 | K8: 2 | L8: 2 | M8: 4 | N8: 2 | O8: 4 | P8: 1 | Q8: 2 | R8: 1 | S8: 1 | U8: 2 | W8: 18 | X8: 8:2 | Y8: 3 | AA8: =D8/W8 -> 4 | AB8: =AA8*2 -> 8
E9: 小学 | F9: 22 | G9: 5 | H9: 5 | I9: 4 | O9: 1 | P9: 1 | Q9: 2 | R9: 1 | S9: 1 | T9: 1 | U9: 1
A10: 3 | B10: 瓮安县 | C10: =D10+W10 -> 100 | D10: =F10+F11 -> 75 | E10: 初中 | F10: 30 | G10: 4 | H10: 2 | I10: 3 | M10: 5 | N10: 4 | O10: 2 | P10: 1 | Q10: 1 | R10: 2 | S10: 3 | U10: 3 | W10: 25 | X10: 6:2 | Y10: 1 | AA10: =D10/W10 -> 3 | AB10: =AA10*2 -> 6
E11: 小学 | F11: 45 | G11: 8 | H11: 4 | I11: 1 | O11: 3 | P11: 7 | Q11: 5 | R11: 7 | S11: 2 | T11: 4 | U11: 4
A12: 4 | B12: 贵定县 | C12: =D12+W12 -> 50 | D12: =F12+F13 -> 40 | E12: 初中 | F12: 12 | G12: 2 | H12: 3 | J12: 2 | O12: 2 | Q12: 3 | W12: 10 | X12: 8:2 | Y12: 1 | Z12: 小学政治为道德与法治 | AA12: =D12/W12 -> 4 | AB12: =AA12*2 -> 8
E13: 小学 | F13: 28 | G13: 10 | H13: 8 | I13: 3 | O13: 2 | Q13: 5
A14: 5 | B14: 龙里县 | C14: =D14+W14 -> 50 | D14: =F14+F15 -> 50 | E14: 初中 | F14: 20 | G14: 4 | H14: 5 | I14: 3 | J14: 3 | K14: 1 | M14: 1 | N14: 2 | O14: 1 | X14: 8 | Y14: 1 | AA14: =D14/W14 ->  | AB14: =AA14*2 -> 
E15: 小学 | F15: 30 | G15: 12 | H15: 11 | I15: 4 | P15: 1 | Q15: 1 | R15: 1
A16: 6 | B16: 长顺县 | C16: =D16+W16 -> 44 | D16: =F16+F17 -> 35 | E16: 初中 | F16: 10 | G16: 3 | H16: 3 | J16: 1 | K16: 1 | N16: 1 | O16: 1 | W16: 9 | X16: 8:2 | Y16: 1 | AA16: =D16/W16 -> 4 | AB16: =AA16*2 -> 8
E17: 小学 | F17: 25 | G17: 10 | H17: 10 | I17: 3 | U17: 2
A18: 7 | B18: 三都县 | C18: =D18+W18 -> 70 | D18: =F18+F19 -> 70 | E18: 初中 | F18: 7 | G18: 2 | H18: 3 | I18: 2 | X18: 8 | Y18: 1,4 | AA18: =D18/W18 ->  | AB18: =AA18*2 -> 
E19: 小学 | F19: 63 | G19: 14 | H19: 12 | I19: 13 | O19: 2 | P19: 4 | Q19: 6 | R19: 6 | S19: 2 | T19: 4
A20: 8 | B20: 荔波县 | C20: =D20+W20 -> 50 | D20: =F20+F21 -> 40 | E20: 初中 | F20: 15 | G20: 4 | H20: 3 | I20: 4 | J20: 1 | M20: 1 | O20: 2 | W20: 10 | X20: 8:2 | Y20: 1,2 | AA20: =D20/W20 -> 4 | AB20: =AA20*2 -> 8
E21: 小学 | F21: 25 | G21: 3 | H21: 2 | I21: 5 | P21: 6 | Q21: 5 | R21: 4
A22: 9 | B22: 罗甸县 | C22: =D22+W22 -> 80 | D22: =F22+F23 -> 65 | E22: 初中 | F22: 15 | H22: 6 | J22: 1 | K22: 1 | M22: 2 | O22: 2 | R22: 1 | U22: 2 | W22: 15 | X22: 8:2 | Y22: 1,2 | AA22: =D22/W22 -> 4 | AB22: =AA22*2 -> 9
E23: 小学 | F23: 50 | G23: 15 | H23: 20 | O23: 4 | P23: 2 | Q23: 2 | R23: 2 | S23: 1 | U23: 4
A24: 市（州） | C24: =SUM(C6,C8,C10,C12,C14,C16,C18,C20,C22) -> 584 | D24: =SUM(D6,D8,D10,D12,D14,D16,D18,D20,D22) -> 484 | E24: 初中 | F24: =SUM(F6,F8,F10,F12,F14,F16,F18,F20,F22) -> 171 | G24: =SUM(G6,G8,G10,G12,G14,G16,G18,G20,G22) -> 31 | H24: 37 | I24: 20 | J24: 13 | K24: 5 | L24: 2 | M24: 13 | N24: 11 | O24: 16 | P24: 2 | Q24: 6 | R24: 4 | S24: 4 | T24: 0 | U24: 7 | V24: 0 | W24: 100 | X24: 9.6:2 | AA24: =D24/W24 -> 5 | AB24: =AA24*2 -> 10
E25: 小学 | F25: =SUM(F7,F9,F11,F13,F15,F17,F19,F21,F23) -> 313 | G25: =SUM(G7,G9,G11,G13,G15,G17,G19,G21,G23) -> 81 | H25: 75 | I25: 33 | J25: 0 | K25: 0 | L25: 0 | M25: 0 | N25: 0 | O25: 19 | P25: 23 | Q25: 27 | R25: 22 | S25: 6 | T25: 9 | U25: 18 | V25: 0
A26: 注： 设岗县类型编号：1——连片特殊困难地区和三区三州县；2——国贫县；3——原“两基”攻坚县；4——少数民族自治州、边境县、少数民族自治县和少小民族县；5——省贫县；0——其他。
A28: 县（市）委编办（盖章）： 县（市）教育局（盖章）：
A29: 年 月 日 年 月 日
A31: 县（市）人力资源和社会保障局（盖章）： 县（市）财政局（盖章）：
A32: 年 月 日 年 月 日
